fUSD/lending_fUSD_20240319
["ID","MTS","AMOUNT","RATE_DAILY","PERIOD"]
[319515896,1710815496499,-500.0,0.00055616,120]
[319515897,1710815496510,-599.14,0.00055616,120]
[319515898,1710815496520,-500.0,0.00055616,120]
[319515899,1710815496531,-1485.41,0.00055616,120]
[319515900,1710815496542,-500.0,0.00055616,120]
[319515901,1710815496553,-1972.44,0.00055616,120]
[319515902,1710815496563,-508.13450682,0.00055616,120]
[319515903,1710815496573,-500.0,0.00055616,120]
[319515904,1710815496584,-500.0,0.00055616,120]
[319515905,1710815496596,-612.66,0.00055616,120]
[319515906,1710815496607,-500.0,0.00055616,120]
[319515907,1710815496618,-500.0,0.00055616,120]
[319515908,1710815496628,-501.37493757,0.00055616,120]
[319515909,1710815496639,-500.0,0.00055616,120]
[319515910,1710815496652,-500.0,0.00055616,120]
[319515911,1710815496663,-838.69,0.00055616,120]
[319515912,1710815496674,-32857.21,0.00055616,120]
[319515913,1710815496685,-500.0,0.00055616,120]
[319515914,1710815496698,-1020.12,0.00055616,120]
[319515915,1710815496709,-500.0,0.00055616,120]
[319515916,1710815496720,-204.308384,0.00055616,120]
[319515917,1710815496730,-500.0,0.00055616,120]
[319515918,1710815496741,-500.0,0.00055616,120]
[319515919,1710815496753,-1152.99,0.00055616,120]
[319515920,1710815496764,-500.0,0.00055616,120]
[319515921,1710815496776,-204.308384,0.00055616,120]
[319515922,1710815496786,-500.0,0.00055616,120]
[319515923,1710815496797,-500.0,0.00055616,120]
[319515924,1710815496807,-664.68,0.00055616,120]
[319515925,1710815496818,-1322.53,0.00055616,120]
[319515926,1710815496829,-500.0,0.00055616,120]
[319515927,1710815496840,-501.87256004,0.00055616,120]
[319515928,1710815496850,-739.93,0.00055616,120]
[319515929,1710815496860,-620.82,0.00055616,120]
[319515930,1710815496870,-512.66,0.00055616,120]
[319515931,1710815496880,-1391.81,0.00055616,120]
[319515932,1710815496890,-2417.04,0.00055616,120]
[319515933,1710815496901,-591.3,0.00055616,120]
[319515934,1710815496911,-500.0,0.00055616,120]
[319515935,1710815496921,-1859.74,0.00055616,120]
[319515936,1710815496932,-500.0,0.00055616,120]
[319515937,1710815496943,-500.0,0.00055616,120]
[319515938,1710815496954,-502.34,0.00055616,120]
[319515939,1710815496964,-507.36002544,0.00055616,120]
[319515940,1710815496974,-500.0,0.00055616,120]
[319515941,1710815496984,-1209.59,0.00055616,120]
[319515942,1710815496994,-1336.54,0.00055616,120]
[319515943,1710815497004,-500.0,0.00055616,120]
[319515944,1710815497015,-857.41,0.00055616,120]
[319515945,1710815497026,-500.0,0.00055616,120]
[319515946,1710815497036,-225.60815099,0.00055616,120]
[319515947,1710815497046,-1577.63,0.00055616,120]
[319515948,1710815497057,-1079.47,0.00055616,120]
[319515949,1710815497067,-500.0,0.00055616,120]
[319515950,1710815497077,-1868.97,0.00055616,120]
[319515951,1710815497087,-500.0,0.00055616,120]
[319515952,1710815497097,-3157.89,0.00055616,120]
[319515953,1710815497108,-1904.43,0.00055616,120]
[319515954,1710815497117,-500.0,0.00055616,120]
[319515955,1710815497127,-510.54968149,0.00055616,120]
[319515956,1710815497136,-500.0,0.00055616,120]
[319515957,1710815497146,-704.11,0.00055616,120]
[319515958,1710815497156,-647.90113908,0.00055616,120]
[319515959,1710815497166,-500.0,0.00055616,120]
[319515960,1710815497175,-500.0,0.00055616,120]
[319515961,1710815497185,-1719.61,0.00055616,120]
[319515962,1710815497198,-518.46374423,0.00055616,120]
[319515963,1710815497212,-500.0,0.00055616,120]
[319515964,1710815497221,-500.0,0.00055616,120]
[319515965,1710815497231,-500.0,0.00055616,120]
[319515966,1710815497240,-568.52,0.00055616,120]
[319515967,1710815497448,-659.47,0.00055616,120]
[319515968,1710815497458,-500.0,0.00055616,120]
[319515969,1710815497468,-500.0,0.00055616,120]
[319515970,1710815497477,-500.0,0.00055616,120]
[319515971,1710815497487,-500.0,0.00055616,120]
[319515972,1710815497496,-1193.75,0.00055616,120]
[319515973,1710815497506,-500.0,0.00055616,120]
[319515974,1710815497515,-500.0,0.00055616,120]
[319515975,1710815497525,-515.18,0.00055616,120]
[319515976,1710815497535,-500.0,0.00055616,120]
[319515977,1710815497545,-1053.46,0.00055616,120]
[319515978,1710815497554,-500.0,0.00055616,120]
[319515979,1710815497564,-1220.11,0.00055616,120]
[319515980,1710815497573,-986.04,0.00055616,120]
[319515981,1710815497583,-324.21089917,0.00055616,120]
[319515982,1710815497593,-500.0,0.00055616,120]
[319515983,1710815497603,-500.0,0.00055616,2]
[319515984,1710815497612,-2226.45,0.00055616,120]
[319515985,1710815497621,-500.0,0.00055616,120]
[319515986,1710815497630,-503.91531749,0.00055616,120]
[319515987,1710815497640,-500.0,0.00055616,120]
[319515988,1710815497649,-2834.4,0.00055616,120]
[319515989,1710815497659,-500.0,0.00055616,120]
[319515990,1710815497668,-500.0,0.00055616,120]
[319515991,1710815497678,-500.0,0.00055616,120]
[319515992,1710815497688,-156.185853,0.00055616,120]
[319515993,1710815497700,-500.0,0.00055616,120]
[319515994,1710815497710,-500.0,0.00055616,120]
[319515995,1710815497719,-500.0,0.00055616,120]
[319515996,1710815497729,-500.0,0.00055616,120]
[319515997,1710815497738,-500.0,0.00055616,120]
[319515998,1710815497748,-1857.95,0.00055616,120]
[319515999,1710815497758,-500.0,0.00055616,120]
[319516000,1710815497767,-708.11,0.00055616,120]
[319516001,1710815497777,-500.0,0.00055616,120]
[319516002,1710815497787,-1836.13,0.00055616,120]
[319516003,1710815497796,-500.0,0.00055616,120]
[319516004,1710815497806,-542.35,0.00055616,120]
[319516005,1710815497816,-500.0,0.00055616,120]
[319516006,1710815497825,-500.0,0.00055616,120]
[319516007,1710815497834,-4718.43,0.00055616,120]
[319516008,1710815497844,-1843.04,0.00055616,21]
[319516009,1710815497853,-500.0,0.00055616,120]
[319516010,1710815497863,-500.0,0.00055616,120]
[319516011,1710815497873,-2910.34,0.00055616,120]
[319516012,1710815497882,-1062.84,0.00055616,120]
[319516013,1710815497891,-500.0,0.00055616,120]
[319516014,1710815497900,-1125.52,0.00055616,120]
[319516015,1710815497909,-500.0,0.00055616,120]
[319516016,1710815497918,-961.78,0.00055616,120]
[319516017,1710815497928,-500.0,0.00055616,120]
[319516018,1710815497937,-500.0,0.00055616,120]
[319516019,1710815497950,-500.0,0.00055616,120]
[319516020,1710815497959,-2959.23,0.00055616,120]
[319516021,1710815497968,-500.0,0.00055616,120]
[319516022,1710815497978,-552.3,0.00055616,120]
[319516023,1710815497988,-500.0,0.00055616,120]
[319516024,1710815497997,-500.0,0.00055616,120]
[319516025,1710815498016,-1955.63,0.00055616,120]
[319516026,1710815498027,-500.0,0.00055616,120]
[319516027,1710815498037,-500.0,0.00055616,120]
[319516028,1710815498048,-500.0,0.00055616,120]
[319516029,1710815498058,-1219.87,0.00055616,120]
[319516030,1710815498069,-500.0,0.00055616,120]
[319516031,1710815498079,-500.0,0.00055616,120]
[319516032,1710815498090,-957.07,0.00055616,120]
[319516033,1710815498100,-1129.87,0.00055616,120]
[319516034,1710815498110,-500.0,0.00055616,120]
[319516035,1710815498120,-822.28,0.00055616,120]
[319516036,1710815498130,-507.44603912,0.00055616,120]
[319516037,1710815498140,-3467.49,0.00055616,120]
[319516038,1710815498150,-1614.59,0.00055616,120]
[319516039,1710815498160,-3731.32,0.00055616,120]
[319516040,1710815498171,-500.0,0.00055616,120]
[319516041,1710815498180,-500.0,0.00055616,120]
[319516042,1710815498191,-500.0,0.00055616,120]
[319516043,1710815498204,-500.0,0.00055616,120]
[319516044,1710815498214,-500.0,0.00055616,120]
[319516045,1710815498223,-961.27,0.00055616,120]
[319516046,1710815498233,-500.0,0.00055616,120]
[319516047,1710815498245,-500.0,0.00055616,120]
[319516048,1710815498257,-500.0,0.00055616,120]
[319516049,1710815498267,-1724.04,0.00055616,120]
[319516050,1710815498277,-1244.55,0.00055616,120]
[319516051,1710815498287,-500.0,0.00055616,120]
[319516052,1710815498297,-1361.94,0.00055616,120]
[319516053,1710815498308,-1493.98,0.00055616,120]
[319516054,1710815498318,-500.0,0.00055616,120]
[319516055,1710815498330,-557.1,0.00055616,120]
[319516056,1710815498341,-500.0,0.00055616,120]
[319516057,1710815498351,-500.0,0.00055616,120]
[319516058,1710815498360,-500.0,0.00055616,120]
[319516059,1710815498370,-1193.96,0.00055616,120]
[319516060,1710815498379,-500.0,0.00055616,120]
[319516061,1710815498389,-500.0,0.00055616,120]
[319516062,1710815498400,-500.0,0.00055616,120]
[319516063,1710815498411,-1401.66,0.00055616,120]
[319516064,1710815498420,-500.0,0.00055616,120]
[319516065,1710815498430,-1463.59,0.00055616,120]
[319516066,1710815498440,-500.0,0.00055616,120]
[319516067,1710815498451,-500.0,0.00055616,120]
[319516068,1710815498460,-1296.76,0.00055616,120]
[319516069,1710815498470,-500.0,0.00055616,120]
[319516070,1710815498480,-2724.62,0.00055616,120]
[319516071,1710815498491,-507.76937054,0.00055616,120]
[319516072,1710815498501,-500.0,0.00055616,120]
[319516073,1710815498511,-500.0,0.00055616,120]
[319516074,1710815498520,-1295.46,0.00055616,120]
[319516075,1710815498530,-500.0,0.00055616,120]
[319516076,1710815498541,-2130.32,0.00055616,120]
[319516077,1710815498551,-1974.77,0.00055616,120]
[319516078,1710815498561,-500.0,0.00055616,120]
[319516079,1710815498572,-657.52,0.00055616,120]
[319516080,1710815498582,-500.0,0.00055616,120]
[319516081,1710815498594,-500.0,0.00055616,120]
[319516082,1710815498604,-500.0,0.00055616,120]
[319516083,1710815498614,-500.0,0.00055616,120]
[319516084,1710815498624,-1422.76,0.00055616,120]
[319516085,1710815498634,-500.0,0.00055616,120]
[319516086,1710815498644,-500.0,0.00055616,120]
[319516087,1710815498655,-1557.62,0.00055616,120]
[319516088,1710815498666,-500.0,0.00055616,120]
[319516089,1710815498676,-1606.02,0.00055616,120]
[319516090,1710815498685,-500.0,0.00055616,120]
[319516091,1710815498695,-1777.9,0.00055616,120]
[319516092,1710815498705,-1089.25,0.00055616,120]
[319516093,1710815498715,-500.0,0.00055616,120]
[319516094,1710815498724,-500.0,0.00055616,120]
[319516095,1710815498734,-1205.53,0.00055616,120]
[319516096,1710815498744,-2696.99,0.00055616,120]
[319516097,1710815498755,-1152.46,0.00055616,120]
[319516098,1710815498764,-500.0,0.00055616,120]
[319516099,1710815498774,-810.32,0.00055616,120]
[319516100,1710815498784,-500.0,0.00055616,120]
[319516101,1710815498793,-846.6,0.00055616,120]
[319516102,1710815498802,-500.0,0.00055616,120]
[319516103,1710815498812,-500.0,0.00055616,120]
[319516104,1710815498821,-2202.94,0.00055616,120]
[319516105,1710815498830,-500.0,0.00055616,120]
[319516106,1710815498839,-2109.59,0.00055616,120]
[319516107,1710815498849,-1027.56,0.00055616,120]
[319516108,1710815498858,-500.0,0.00055616,120]
[319516109,1710815498867,-500.0,0.00055616,120]
[319516110,1710815498877,-500.0,0.00055616,120]
[319516111,1710815498886,-500.0,0.00055616,120]
[319516112,1710815498895,-500.0,0.00055616,120]
[319516113,1710815498904,-500.0,0.00055616,120]
[319516114,1710815498914,-500.0,0.00055616,120]
[319516115,1710815498923,-1860.38,0.00055616,120]
[319516116,1710815498932,-500.0,0.00055616,120]
[319516117,1710815498943,-500.0,0.00055616,120]
[319516118,1710815498954,-500.0,0.00055616,120]
[319516119,1710815498963,-9731.84,0.00055616,120]
[319516120,1710815498973,-936.53,0.00055616,120]
[319516121,1710815498982,-1155.32,0.00055616,120]
[319516122,1710815498991,-7852.89,0.00055616,120]
[319516123,1710815499000,-1551.69,0.00055616,120]
[319516124,1710815499010,-500.0,0.00055616,120]
[319516125,1710815499019,-500.0,0.00055616,120]
[319516126,1710815499029,-1571.95,0.00055616,7]
[319516127,1710815499038,-500.0,0.00055616,120]
[319516128,1710815499047,-989.05,0.00055616,120]
[319516129,1710815499056,-500.0,0.00055616,120]
[319516130,1710815499066,-500.0,0.00055616,120]
[319516131,1710815499075,-628.0,0.00055616,120]
[319516132,1710815499085,-2761.03,0.00055616,120]
[319516133,1710815499094,-3467.47,0.00055616,120]
[319516134,1710815499104,-500.0,0.00055616,120]
[319516135,1710815499114,-500.0,0.00055616,120]
[319516136,1710815499124,-500.0,0.00055616,120]
[319516137,1710815499133,-500.0,0.00055616,120]
[319516138,1710815499142,-500.0,0.00055616,120]
[319516139,1710815499152,-500.0,0.00055616,120]
[319516140,1710815499163,-500.0,0.00055616,120]
[319516141,1710815499173,-2488.6,0.00055616,120]
[319516142,1710815499183,-500.0,0.00055616,120]
[319516143,1710815499194,-2441.22,0.00055616,120]
[319516144,1710815499207,-352.70463732,0.00055616,120]
[319516145,1710815499217,-500.0,0.00055616,120]
[319516146,1710815499227,-500.0,0.00055616,120]
[319516147,1710815499237,-500.0,0.00055616,120]
[319516148,1710815499250,-4712.42,0.00055616,120]
[319516149,1710815499260,-2924.24,0.00055616,120]
[319516150,1710815499270,-1341.63,0.00055616,120]
[319516151,1710815499280,-1196.76,0.00055616,120]
[319516152,1710815499290,-500.0,0.00055616,120]
[319516153,1710815499299,-500.0,0.00055616,120]
[319516154,1710815499309,-3847.33,0.00055616,120]
[319516155,1710815499319,-504.3372695,0.00055616,120]
[319516156,1710815499329,-500.0,0.00055616,120]
[319516157,1710815499338,-500.0,0.00055616,120]
[319516158,1710815499400,-500.0,0.00055616,120]
[319516159,1710815499410,-707.9,0.00055616,120]
[319516160,1710815499419,-992.27,0.00055616,120]
[319516161,1710815499429,-1637.59,0.00055616,120]
[319516162,1710815499438,-1862.01,0.00055616,120]
[319516163,1710815499450,-2398.68,0.00055616,120]
[319516164,1710815499459,-500.0,0.00055616,120]
[319516165,1710815499468,-500.0,0.00055616,120]
[319516166,1710815499477,-500.0,0.00055616,120]
[319516167,1710815499486,-1286.61,0.00055616,120]
[319516168,1710815499496,-500.0,0.00055616,120]
[319516169,1710815499506,-500.0,0.00055616,120]
[319516170,1710815499515,-4496.61,0.00055616,120]
[319516171,1710815499525,-1504.11,0.00055616,120]
[319516172,1710815499534,-500.0,0.00055616,120]
[319516173,1710815499543,-1636.39,0.00055616,120]
[319516174,1710815499553,-500.0,0.00055616,120]
[319516175,1710815499563,-1989.3,0.00055616,120]
[319516176,1710815499572,-517.02,0.00055616,120]
[319516177,1710815499582,-7477.17,0.00055616,120]
[319516178,1710815499592,-506.24160659,0.00055616,120]
[319516179,1710815499601,-766.61,0.00055616,120]
[319516180,1710815499610,-500.0,0.00055616,120]
[319516181,1710815499620,-503.79459399,0.00055616,120]
[319516182,1710815499629,-500.0,0.00055616,120]
[319516183,1710815499639,-4908.68,0.00055616,120]
[319516184,1710815499649,-512.43,0.00055616,120]
[319516185,1710815499659,-500.0,0.00055616,120]
[319516186,1710815499668,-500.0,0.00055616,120]
[319516187,1710815499678,-500.0,0.00055616,120]
[319516188,1710815499687,-3697.55,0.00055616,120]
[319516189,1710815499698,-620.61,0.00055616,120]
[319516190,1710815499707,-887.73,0.00055616,120]
[319516191,1710815499717,-500.0,0.00055616,120]
[319516192,1710815499726,-1777.24,0.00055616,120]
[319516193,1710815499735,-500.0,0.00055616,120]
[319516194,1710815499744,-817.79,0.00055616,120]
[319516195,1710815499754,-500.0,0.00055616,120]
[319516196,1710815499763,-2895.4,0.00055616,120]
[319516197,1710815499772,-2137.7,0.00055616,120]
[319516198,1710815499782,-500.0,0.00055616,120]
[319516199,1710815499792,-500.0,0.00055616,120]
[319516200,1710815499801,-776.43,0.00055616,120]
[319516201,1710815499810,-500.0,0.00055616,120]
[319516202,1710815499819,-500.0,0.00055616,120]
[319516203,1710815499828,-766.17,0.00055616,120]
[319516204,1710815499838,-14779.54,0.00055616,120]
[319516205,1710815499847,-316.62708907,0.00055616,120]
[319516206,1710815499857,-1375.07,0.00055616,120]
[319516207,1710815499866,-500.0,0.00055616,120]
[319516208,1710815499875,-200.0,0.00055616,120]
[319516209,1710815499885,-500.0,0.00055616,120]
[319516210,1710815499895,-1521.12,0.00055616,120]
[319516211,1710815499905,-1283.0,0.00055616,120]
[319516212,1710815499915,-500.0,0.00055616,120]
[319516213,1710815499924,-679.89,0.00055616,120]
[319516214,1710815499933,-598.46,0.00055616,2]
[319516215,1710815499943,-500.0,0.00055616,120]
[319516216,1710815499954,-500.0,0.00055616,120]
[319516217,1710815499963,-1257.67,0.00055616,120]
[319516218,1710815500065,-500.0,0.00055616,120]
[319516219,1710815500076,-758.2,0.00055616,120]
[319516220,1710815500087,-500.0,0.00055616,120]
[319516221,1710815500098,-1151.3,0.00055616,120]
[319516222,1710815500108,-500.0,0.00055616,2]
[319516223,1710815500119,-1196.93,0.00055616,120]
[319516224,1710815500129,-500.0,0.00055616,120]
[319516225,1710815500139,-500.0,0.00055616,120]
[319516226,1710815500149,-500.0,0.00055616,120]
[319516227,1710815500158,-2331.78,0.00055616,120]
[319516228,1710815500168,-500.0,0.00055616,120]
[319516229,1710815500178,-500.0,0.00055616,120]
[319516230,1710815500188,-500.0,0.00055616,120]
[319516231,1710815500201,-534.01,0.00055616,120]
[319516232,1710815500210,-2838.88,0.00055616,120]
[319516233,1710815500219,-356.08921517,0.00055616,120]
[319516234,1710815500229,-500.0,0.00055616,120]
[319516235,1710815500239,-500.0,0.00055616,120]
[319516236,1710815500251,-1785.73,0.00055616,120]
[319516237,1710815500260,-6940.79,0.00055616,120]
[319516238,1710815500270,-532.76813038,0.00055616,120]
[319516239,1710815500279,-669.38,0.00055616,120]
[319516240,1710815500288,-500.0,0.00055616,120]
[319516241,1710815500298,-500.0,0.00055616,120]
[319516242,1710815500307,-869.32,0.00055616,120]
[319516243,1710815500317,-1847.59,0.00055616,120]
[319516244,1710815500327,-500.0,0.00055616,120]
[319516245,1710815500336,-940.14,0.00055616,120]
[319516246,1710815500346,-518.95,0.00055616,120]
[319516247,1710815500359,-500.0,0.00055616,120]
[319516248,1710815500368,-3651.02,0.00055616,120]
[319516249,1710815500377,-701.95439667,0.00055616,120]
[319516250,1710815501190,-880.116641,0.0005198,120]
[319516251,1710815501203,-500.0,0.00055342,120]
[319516252,1710815501213,-178.16224433,0.00055616,120]
[319516253,1710815501223,-500.0,0.00055616,120]
[319516254,1710815501233,-500.0,0.00055616,120]
[319516255,1710815501244,-500.0,0.00055616,120]
[319516256,1710815501254,-200.0,0.00055673,120]
[319516257,1710815501263,-3902.64525643,0.0005579,16]
[319516258,1710815501273,-183.98888889,0.00055836,120]
[319516259,1710815501282,-422.72222222,0.00055836,120]
[319516260,1710815501293,-1522.5882003,0.00055852,2]
[319516261,1710815502269,-154.97417862,0.000369,2]
[319516262,1710815502280,-165.45956797,0.00039999,31]
[319516263,1710815502290,-144.94675051,0.00054756,120]
[319516264,1710815502417,-6.05324949,0.00054756,120]
[319516265,1710815502429,-736.44675051,0.00054756,120]
[319516266,1710815502471,-143.66989049,0.00054756,120]
[319516267,1710815502482,-537.81,0.00054794,120]
[319516268,1710815502492,-498.69853088,0.00054794,120]
[319516269,1710815502502,-375.7386523,0.00054794,120]
[319516270,1710815502515,-122.9634494,0.00054794,120]
[319516271,1710815502525,-151.0,0.000549,120]
[319516272,1710815502535,-880.116641,0.000549,120]
[319516273,1710815502544,-151.0,0.00055,120]
[319516274,1710815502554,-880.116641,0.00055,120]
[319516275,1710815502564,-880.116641,0.00055067,120]
[319516276,1710815502574,-537.81,0.00055068,120]
[319516277,1710815502584,-537.81,0.00055342,120]
[319516278,1710815502595,-880.116641,0.00055342,120]
[319516279,1710815502604,-500.0,0.00055616,120]
[319516280,1710815502614,-537.81,0.00055616,120]
[319516281,1710815502624,-59.06953206,0.00055616,120]
[319516282,1710815502637,-821.04710894,0.00055616,120]
[319516283,1710815502647,-3437.93768979,0.00055852,2]
[319516284,1710815502659,-2679.18944781,0.00055852,2]
[319516285,1710815502669,-1631.3227314,0.00055852,2]
[319516286,1710815502680,-1183.6832093,0.00055852,2]
[319516287,1710815502690,-488.6983213,0.00055852,2]
[319516288,1710815502701,-1045.6294362,0.00055852,2]
[319516289,1710815502711,-251.9681766,0.00055889,120]
[319516290,1710815502720,-500.0,0.0005589,30]
[319516291,1710815502730,-500.0,0.0005589,120]
[319516292,1710815502739,-500.0,0.0005589,120]
[319516293,1710815502749,-500.0,0.0005589,120]
[319516294,1710815502759,-500.0,0.0005589,120]
[319516295,1710815502769,-240.66807739,0.0005589,120]
[319516296,1710815502782,-259.33192261,0.0005589,120]
[319516297,1710815502792,-500.0,0.0005589,120]
[319516298,1710815502801,-130.05281928,0.0005589,120]
[319516299,1710815502813,-369.94718072,0.0005589,120]
[319516300,1710815502823,-115.35781928,0.0005589,120]
[319516301,1710815503705,-498.74154254,0.00036899,2]
[319516302,1710815503715,-643.37611214,0.00048128,26]
[319516303,1710815503724,-747.8474615,0.000499,2]
[319516304,1710815503738,-2285.28017941,0.000499,2]
[319516305,1710815503747,-1016.53597494,0.00050999,5]
[319516306,1710815503759,-1467.25644211,0.00050999,5]
[319516307,1710815503783,-5000.0,0.00043371,30]
[319516308,1710815503792,-5744.77403547,0.00050999,5]
[319516309,1710815503802,-680.11884474,0.00050999,4]
[319516310,1710815503812,-541.35479747,0.00054794,120]
[319516311,1710815503822,-384.64218072,0.0005589,120]
[319516312,1710815503832,-500.0,0.0005589,120]
[319516313,1710815503843,-500.0,0.0005589,120]
[319516314,1710815503853,-219.75620612,0.0005589,120]
[319516315,1710815503864,-500.0,0.0005589,120]
[319516316,1710815503876,-500.0,0.0005589,120]
[319516317,1710815503886,-500.0,0.0005589,120]
[319516318,1710815503895,-500.0,0.0005589,120]
[319516319,1710815503904,-500.0,0.0005589,120]
[319516320,1710815503914,-500.0,0.0005589,120]
[319516321,1710815503923,-500.0,0.0005589,120]
[319516322,1710815503933,-500.0,0.0005589,120]
[319516323,1710815503942,-1145.69,0.0005589,120]
[319516324,1710815503954,-500.0,0.0005589,120]
[319516325,1710815503963,-220.42833563,0.0005589,120]
[319516326,1710815504068,-705.28166437,0.0005589,120]
[319516327,1710815504078,-500.0,0.0005589,120]
[319516328,1710815504089,-179.7869032,0.0005589,120]
[319516329,1710815504099,-1056.46,0.0005589,120]
[319516330,1710815504110,-687.06,0.0005589,120]
[319516331,1710815504338,-500.0,0.0005589,120]
[319516332,1710815504357,-503.42871879,0.0005589,120]
[319516333,1710815504367,-500.0,0.0005589,120]
[319516334,1710815504376,-241.12071364,0.0005589,120]
[319516363,1710816632340,-522.56926041,0.00016997,2]
[319516365,1710816632352,-155.0,0.00016998,2]
[319516368,1710816632363,-2343.16159328,0.00016999,2]
[319516371,1710816632380,-699.26914631,0.00016999,2]
[319516383,1710816632466,-759.75030221,0.00016999,2]
[319516385,1710816632480,-255.74446782,0.00016999,2]
[319516392,1710816632535,-1644.36654125,0.00016999,2]
[319516394,1710816632551,-157.01933342,0.00017,3]
[319516405,1710816632664,-592.98066658,0.00017,3]
[319516406,1710816632675,-2164.097004,0.00019499,2]
[319516407,1710816632687,-488.24075829,0.000195,2]
[319516408,1710816632698,-529.37904197,0.00023994,2]
[319516409,1710816632709,-535.3809211,0.00023998,2]
[319516410,1710816632721,-499.05442867,0.00023999,2]
[319516411,1710816632731,-1585.93280439,0.00023999,2]
[319516412,1710816632742,-339.37326981,0.00024,2]
[319516413,1710816632754,-999.99,0.00024,2]
[319516414,1710816632764,-499.99,0.00024,2]
[319516415,1710816632776,-534.12503528,0.00028798,2]
[319516416,1710816632787,-157.51869608,0.00028799,2]
[319516419,1710816632799,-625.74605049,0.0002889,2]
[319516422,1710816632810,-666.93,0.000289,2]
[319516425,1710816632822,-1138.0,0.000291,3]
[319516428,1710816632832,-299.99,0.00029479,12]
[319516431,1710816632843,-150.0,0.00029479,2]
[319516434,1710816632854,-439.45895503,0.000295,3]
[319516437,1710816632865,-300.0,0.00029989,2]
[319516464,1710816633438,-3533.85985794,0.0003357,4]
[319516465,1710816633467,-1098.6591993,0.00033571,4]
[319516466,1710816633491,-192.32140534,0.00033572,5]
[319516467,1710816633515,-150.94,0.00033574,5]
[319516468,1710816633533,-19222.05911731,0.0003368,4]
[319516469,1710816633546,-2987.0,0.00033681,2]
[319516470,1710816633556,-486.0,0.00033681,2]
[319516471,1710816633566,-2987.0,0.00034028,2]
[319516472,1710816633575,-486.0,0.00034028,2]
[319516473,1710816633588,-164.49,0.00034273,2]
[319516474,1710816633598,-5486.30860647,0.00034275,2]
[319516475,1710816633607,-2987.0,0.00034375,2]
[319516476,1710816633618,-486.0,0.00034375,2]
[319516477,1710816633633,-150.0,0.00034548,10]
[319516478,1710816633642,-2987.0,0.00034722,2]
[319516479,1710816633651,-486.0,0.00034722,2]
[319516480,1710816633661,-1623.69387019,0.00034722,2]
[319516481,1710816633670,-2887.6318923,0.000348,2]
[319516482,1710816633680,-2987.0,0.0003507,2]
[319516483,1710816633690,-486.0,0.0003507,2]
[319516484,1710816633699,-2987.0,0.00035417,2]
[319516485,1710816633708,-486.0,0.00035417,2]
[319516486,1710816633719,-2933.0,0.00035601,51]
[319516487,1710816633729,-2987.0,0.00035764,2]
[319516488,1710816633738,-486.0,0.00035764,2]
[319516489,1710816633748,-1316.3541011,0.0003757,2]
[319516490,1710816633757,-150.136,0.00038071,2]
[319516491,1710816633767,-4044.22426239,0.000389,15]
[319516492,1710816633776,-3226.3,0.00038956,71]
[319516493,1710816633786,-212.59,0.00039982,2]
[319516494,1710816633796,-1325.80857974,0.00040269,4]
[319516495,1710816633806,-700.0,0.0004027,3]
[319516496,1710816633816,-600.9488456,0.0004027,3]
[319516497,1710816633826,-321.65,0.00040359,2]